[Event "Titled Tuesday Blitz December 06 Late 2022"]
[White "Perez Leiva, Jerzy Jesus"]
[Black "Zeman, Matyas"]
[WhiteFideId "3524337"]
[BlackFideId "364398"]
[WhiteElo "2289"]
[BlackElo "2254"]
[Result "1-0"]
[Round "04"]
[TimeControl "180+1"]
[Date "2022.12.07"]
[WhiteClock "0:01:08"]
[BlackClock "0:00:06"]

1. e4 {[%clk 0:03:00]}  c6 {[%clk 0:02:41]} 2. Nc3 {[%clk 0:03:00]}  d5 {[%clk 0:02:42]} 3. Nf3 {[%clk 0:03:00]}  dxe4 {[%clk 0:02:42]} 4. Nxe4 {[%clk 0:03:00]}  Nf6 {[%clk 0:02:43]} 5. Qe2 {[%clk 0:03:01]}  Nxe4 {[%clk 0:02:43]} 6. Qxe4 {[%clk 0:03:02]}  Qd5 {[%clk 0:02:43]} 7. Qh4 {[%clk 0:02:59]}  Bf5 {[%clk 0:02:38]} 8. Bc4 {[%clk 0:02:52]}  Qd6 {[%clk 0:02:16]} 9. d3 {[%clk 0:02:49]}  e6 {[%clk 0:02:11]} 10. O-O {[%clk 0:02:36]}  Be7 {[%clk 0:02:11]} 11. Qg3 {[%clk 0:02:32]}  Qxg3 {[%clk 0:02:10]} 12. hxg3 {[%clk 0:02:32]}  Nd7 {[%clk 0:02:11]} 13. a4 {[%clk 0:02:29]}  h5 {[%clk 0:01:59]} 14. Bg5 {[%clk 0:02:28]}  Ne5 {[%clk 0:01:53]} 15. Bxe7 {[%clk 0:02:16]}  Nxf3+ {[%clk 0:01:53]} 16. gxf3 {[%clk 0:02:16]}  Kxe7 {[%clk 0:01:54]} 17. a5 {[%clk 0:02:14]}  g5 {[%clk 0:01:52]} 18. Rfe1 {[%clk 0:02:13]}  h4 {[%clk 0:01:52]} 19. g4 {[%clk 0:02:13]}  Bg6 {[%clk 0:01:51]} 20. Re5 {[%clk 0:02:14]}  Kf6 {[%clk 0:01:39]} 21. Rc5 {[%clk 0:02:13]}  a6 {[%clk 0:01:37]} 22. Re1 {[%clk 0:02:06]}  Rhg8 {[%clk 0:01:26]} 23. Kh2 {[%clk 0:02:04]}  Rad8 {[%clk 0:01:25]} 24. Bb3 {[%clk 0:01:49]}  Rd4 {[%clk 0:01:23]} 25. Bc4 {[%clk 0:01:26]}  Rf4 {[%clk 0:01:19]} 26. Re3 {[%clk 0:01:26]}  Bh7 {[%clk 0:01:10]} 27. c3 {[%clk 0:01:26]}  Ke7 {[%clk 0:01:01]} 28. d4 {[%clk 0:01:27]}  Rg7 {[%clk 0:00:55]} 29. Be2 {[%clk 0:01:23]}  f6 {[%clk 0:00:50]} 30. Bc4 {[%clk 0:01:19]}  Bg8 {[%clk 0:00:50]} 31. Rf5 {[%clk 0:01:19]}  Kd6 {[%clk 0:00:18]} 32. Rxf4 {[%clk 0:01:11]}  gxf4 {[%clk 0:00:19]} 33. Re4 {[%clk 0:01:09]}  Bh7 {[%clk 0:00:06]} 34. Rxe6+ {[%clk 0:01:08]} 1-0


[Site "https://www.chess.com"]

[Event "Titled Tuesday Blitz December 06 Late 2022"]
[White "Pham, Khoi"]
[Black "Cuevas Araya, Walter"]
[WhiteFideId "1054988"]
[BlackFideId "3405028"]
[WhiteElo "2483"]
[BlackElo "1957"]
[Result "1-0"]
[Round "04"]
[TimeControl "180+1"]
[Date "2022.12.07"]
[WhiteClock "0:01:32"]
[BlackClock "0:00:53"]

1. e4 {[%clk 0:02:59]}  e5 {[%clk 0:02:59]} 2. Nf3 {[%clk 0:02:56]}  Nf6 {[%clk 0:02:59]} 3. Nc3 {[%clk 0:02:57]}  Nc6 {[%clk 0:02:56]} 4. a3 {[%clk 0:02:56]}  Bc5 {[%clk 0:02:55]} 5. Nxe5 {[%clk 0:02:55]}  Nxe5 {[%clk 0:02:50]} 6. d4 {[%clk 0:02:54]}  Bxd4 {[%clk 0:02:46]} 7. Qxd4 {[%clk 0:02:54]}  Nc6 {[%clk 0:02:47]} 8. Qd3 {[%clk 0:02:53]}  O-O {[%clk 0:02:47]} 9. Bg5 {[%clk 0:02:52]}  h6 {[%clk 0:02:46]} 10. Bh4 {[%clk 0:02:52]}  Re8 {[%clk 0:02:46]} 11. O-O-O {[%clk 0:02:51]}  d6 {[%clk 0:02:46]} 12. f3 {[%clk 0:02:50]}  Be6 {[%clk 0:02:42]} 13. g4 {[%clk 0:02:42]}  Ne5 {[%clk 0:02:41]} 14. Qe3 {[%clk 0:02:42]}  Ng6 {[%clk 0:02:40]} 15. Bg3 {[%clk 0:02:40]}  Qc8 {[%clk 0:02:40]} 16. h4 {[%clk 0:02:38]}  Nh7 {[%clk 0:02:31]} 17. g5 {[%clk 0:02:33]}  h5 {[%clk 0:02:30]} 18. Be2 {[%clk 0:02:30]}  Ne5 {[%clk 0:02:28]} 19. Bxe5 {[%clk 0:02:25]}  dxe5 {[%clk 0:02:27]} 20. f4 {[%clk 0:02:25]}  Bg4 {[%clk 0:02:26]} 21. f5 {[%clk 0:02:25]}  Bxe2 {[%clk 0:02:24]} 22. Qxe2 {[%clk 0:02:26]}  g6 {[%clk 0:02:24]} 23. Rhf1 {[%clk 0:02:23]}  c6 {[%clk 0:02:23]} 24. Rd6 {[%clk 0:02:13]}  Qc7 {[%clk 0:02:22]} 25. fxg6 {[%clk 0:02:11]}  Qxd6 {[%clk 0:02:15]} 26. gxf7+ {[%clk 0:02:11]}  Kg7 {[%clk 0:02:14]} 27. fxe8=Q {[%clk 0:02:07]}  Rxe8 {[%clk 0:02:14]} 28. Qxh5 {[%clk 0:02:07]}  Rf8 {[%clk 0:02:14]} 29. Rxf8 {[%clk 0:02:04]}  Nxf8 {[%clk 0:02:13]} 30. Qg4 {[%clk 0:02:02]}  Qd4 {[%clk 0:02:10]} 31. h5 {[%clk 0:02:00]}  Qe3+ {[%clk 0:02:02]} 32. Kb1 {[%clk 0:01:59]}  Qf4 {[%clk 0:01:59]} 33. Qg2 {[%clk 0:01:51]}  Ne6 {[%clk 0:01:57]} 34. g6 {[%clk 0:01:50]}  Nd4 {[%clk 0:01:48]} 35. Qh3 {[%clk 0:01:46]}  Kh6 {[%clk 0:01:44]} 36. Nd1 {[%clk 0:01:36]}  Qd2 {[%clk 0:01:40]} 37. Qe3+ {[%clk 0:01:31]}  Qxe3 {[%clk 0:01:38]} 38. Nxe3 {[%clk 0:01:32]}  Ne6 {[%clk 0:01:37]} 39. Nf5+ {[%clk 0:01:32]}  Kxh5 {[%clk 0:01:34]} 40. g7 {[%clk 0:01:33]}  Nxg7 {[%clk 0:01:30]} 41. Nxg7+ {[%clk 0:01:34]}  Kg4 {[%clk 0:01:30]} 42. Ne6 {[%clk 0:01:34]}  Kf3 {[%clk 0:01:30]} 43. Nd8 {[%clk 0:01:35]}  Kxe4 {[%clk 0:01:29]} 44. Nxb7 {[%clk 0:01:35]}  Kf3 {[%clk 0:01:29]} 45. Na5 {[%clk 0:01:27]}  e4 {[%clk 0:01:29]} 46. Nxc6 {[%clk 0:01:27]}  e3 {[%clk 0:01:29]} 47. Nd4+ {[%clk 0:01:28]}  Ke4 {[%clk 0:01:29]} 48. c3 {[%clk 0:01:28]}  Kd3 {[%clk 0:01:29]} 49. Ka2 {[%clk 0:01:28]}  a5 {[%clk 0:01:27]} 50. Kb3 {[%clk 0:01:27]}  Kd2 {[%clk 0:01:25]} 51. Ka4 {[%clk 0:01:26]}  Kc1 {[%clk 0:01:22]} 52. c4 {[%clk 0:01:24]}  Kxb2 {[%clk 0:01:22]} 53. c5 {[%clk 0:01:25]}  Kc3 {[%clk 0:01:22]} 54. Nf3 {[%clk 0:01:25]}  e2 {[%clk 0:01:19]} 55. c6 {[%clk 0:01:25]}  Kd3 {[%clk 0:01:18]} 56. c7 {[%clk 0:01:24]}  Ke3 {[%clk 0:01:19]} 57. Ne1 {[%clk 0:01:24]}  Kd2 {[%clk 0:01:19]} 58. Ng2 {[%clk 0:01:24]}  e1=Q {[%clk 0:01:17]} 59. Nxe1 {[%clk 0:01:23]}  Kxe1 {[%clk 0:01:18]} 60. c8=Q {[%clk 0:01:23]}  Kf1 {[%clk 0:01:04]} 61. Qa6+ {[%clk 0:01:24]}  Ke1 {[%clk 0:00:49]} 62. Qxa5+ {[%clk 0:01:25]}  Kf1 {[%clk 0:00:49]} 63. Qb4 {[%clk 0:01:26]}  Kg1 {[%clk 0:00:50]} 64. Kb5 {[%clk 0:01:26]}  Kh1 {[%clk 0:00:50]} 65. a4 {[%clk 0:01:27]}  Kg1 {[%clk 0:00:51]} 66. a5 {[%clk 0:01:28]}  Kh1 {[%clk 0:00:52]} 67. a6 {[%clk 0:01:29]}  Kg1 {[%clk 0:00:52]} 68. a7 {[%clk 0:01:30]}  Kh1 {[%clk 0:00:53]} 69. a8=Q+ {[%clk 0:01:31]}  Kg1 {[%clk 0:00:54]} 70. Qc6 {[%clk 0:01:32]}  Kh2 {[%clk 0:00:53]} 71. Qcc3 {[%clk 0:01:30]}  Kg1 {[%clk 0:00:53]} 72. Qbb2 {[%clk 0:01:31]}  Kf1 {[%clk 0:00:53]} 73. Qcc1# {[%clk 0:01:32]} 1-0


[Site "https://www.chess.com"]

[Event "Titled Tuesday Blitz December 06 Late 2022"]
[White "Postnikov, Daniil"]
[Black "Pasti, Aron"]
[WhiteFideId "4166329"]
[BlackFideId "785857"]
[WhiteElo "2663"]
[BlackElo "2401"]
[Result "1-0"]
[Round "04"]
[TimeControl "180+1"]
[Date "2022.12.07"]
[WhiteClock "0:00:20"]
[BlackClock "0:00:01"]

1. e4 {[%clk 0:03:00]}  c5 {[%clk 0:02:59]} 2. a3 {[%clk 0:03:00]}  e6 {[%clk 0:02:58]} 3. b4 {[%clk 0:03:00]}  cxb4 {[%clk 0:02:57]} 4. axb4 {[%clk 0:03:00]}  d5 {[%clk 0:02:58]} 5. e5 {[%clk 0:02:56]}  d4 {[%clk 0:02:56]} 6. b5 {[%clk 0:02:51]}  Nd7 {[%clk 0:02:52]} 7. Nf3 {[%clk 0:02:51]}  Qc7 {[%clk 0:02:51]} 8. Be2 {[%clk 0:02:34]}  Nxe5 {[%clk 0:02:44]} 9. Nxd4 {[%clk 0:02:33]}  Bc5 {[%clk 0:02:44]} 10. Bb2 {[%clk 0:02:32]}  Ne7 {[%clk 0:02:43]} 11. O-O {[%clk 0:02:31]}  O-O {[%clk 0:02:42]} 12. Nb3 {[%clk 0:02:31]}  Bd6 {[%clk 0:02:38]} 13. Na3 {[%clk 0:02:27]}  b6 {[%clk 0:02:36]} 14. d4 {[%clk 0:02:24]}  N5g6 {[%clk 0:02:33]} 15. g3 {[%clk 0:02:24]}  Bb7 {[%clk 0:02:33]} 16. Nc4 {[%clk 0:02:24]}  Nf4 {[%clk 0:01:59]} 17. gxf4 {[%clk 0:02:19]}  Bxf4 {[%clk 0:01:59]} 18. Ne5 {[%clk 0:02:15]}  Rfd8 {[%clk 0:01:47]} 19. Bd3 {[%clk 0:02:10]}  f6 {[%clk 0:01:40]} 20. Nf3 {[%clk 0:01:03]}  e5 {[%clk 0:01:39]} 21. Qe2 {[%clk 0:01:00]}  Ng6 {[%clk 0:01:29]} 22. Be4 {[%clk 0:00:55]}  exd4 {[%clk 0:00:55]} 23. Nbxd4 {[%clk 0:00:47]}  Re8 {[%clk 0:00:51]} 24. Nc6 {[%clk 0:00:47]}  Ne7 {[%clk 0:00:28]} 25. Qc4+ {[%clk 0:00:44]}  Kh8 {[%clk 0:00:27]} 26. Rfe1 {[%clk 0:00:41]}  Bc8 {[%clk 0:00:18]} 27. Qf7 {[%clk 0:00:37]}  Bg4 {[%clk 0:00:11]} 28. Bxf6 {[%clk 0:00:36]}  Nf5 {[%clk 0:00:01]} 29. Ne7 {[%clk 0:00:20]} 1-0


[Site "https://www.chess.com"]

[Event "Titled Tuesday Blitz December 06 Late 2022"]
[White "Potapova, Margarita"]
[Black "Stanisz, Patryk"]
[WhiteFideId "14126869"]
[BlackFideId "1123106"]
[WhiteElo "2273"]
[BlackElo "2069"]
[Result "1-0"]
[Round "04"]
[TimeControl "180+1"]
[Date "2022.12.07"]
[WhiteClock "0:01:53"]
[BlackClock "0:00:05"]

1. d4 {[%clk 0:03:00]}  d5 {[%clk 0:02:59]} 2. Bf4 {[%clk 0:03:01]}  Nf6 {[%clk 0:02:59]} 3. e3 {[%clk 0:03:02]}  c5 {[%clk 0:03:00]} 4. dxc5 {[%clk 0:03:03]}  Nc6 {[%clk 0:03:00]} 5. Bb5 {[%clk 0:03:03]}  g5 {[%clk 0:02:26]} 6. Be5 {[%clk 0:02:59]}  Bg7 {[%clk 0:02:22]} 7. Nf3 {[%clk 0:02:57]}  g4 {[%clk 0:02:22]} 8. Nd4 {[%clk 0:02:57]}  Bd7 {[%clk 0:02:22]} 9. Nxc6 {[%clk 0:02:56]}  bxc6 {[%clk 0:02:23]} 10. Be2 {[%clk 0:02:56]}  Qa5+ {[%clk 0:02:22]} 11. c3 {[%clk 0:02:54]}  Qxc5 {[%clk 0:02:21]} 12. O-O {[%clk 0:02:54]}  h5 {[%clk 0:02:21]} 13. Nd2 {[%clk 0:02:54]}  h4 {[%clk 0:02:20]} 14. Bxf6 {[%clk 0:02:51]}  Bxf6 {[%clk 0:02:17]} 15. Bxg4 {[%clk 0:02:52]}  Qd6 {[%clk 0:02:13]} 16. Bxd7+ {[%clk 0:02:51]}  Qxd7 {[%clk 0:02:13]} 17. e4 {[%clk 0:02:52]}  Rg8 {[%clk 0:01:54]} 18. Kh1 {[%clk 0:02:51]}  O-O-O {[%clk 0:01:44]} 19. Qe2 {[%clk 0:02:51]}  e6 {[%clk 0:01:08]} 20. a4 {[%clk 0:02:40]}  Rg6 {[%clk 0:00:56]} 21. Ra3 {[%clk 0:02:32]}  Rdg8 {[%clk 0:00:50]} 22. Rg1 {[%clk 0:02:32]}  Be7 {[%clk 0:00:38]} 23. Rb3 {[%clk 0:02:31]}  Bd6 {[%clk 0:00:19]} 24. Qa6+ {[%clk 0:02:31]}  Kd8 {[%clk 0:00:20]} 25. Rb7 {[%clk 0:02:29]}  Bc7 {[%clk 0:00:20]} 26. Nf3 {[%clk 0:02:18]}  dxe4 {[%clk 0:00:09]} 27. Ne5 {[%clk 0:02:17]}  Rxg2 {[%clk 0:00:10]} 28. Rf1 {[%clk 0:02:04]}  Rxh2+ {[%clk 0:00:07]} 29. Kxh2 {[%clk 0:02:02]}  Bxe5+ {[%clk 0:00:08]} 30. Kh1 {[%clk 0:01:59]}  Bc7 {[%clk 0:00:06]} 31. Qe2 {[%clk 0:01:53]}  Qd6 {[%clk 0:00:05]} 32. Rd1 {[%clk 0:01:53]} 1-0


[Site "https://www.chess.com"]

[Event "Titled Tuesday Blitz December 06 Late 2022"]
[White "Radovanovic, Dusan"]
[Black "Ferreira, Vitor Hugo Vieira"]
[WhiteFideId "926868"]
[BlackFideId "2119765"]
[WhiteElo "2337"]
[BlackElo "2146"]
[Result "1-0"]
[Round "04"]
[TimeControl "180+1"]
[Date "2022.12.07"]
[WhiteClock "0:00:08"]
[BlackClock "0:00:52"]

1. e4 {[%clk 0:03:00]}  c6 {[%clk 0:02:57]} 2. d4 {[%clk 0:02:59]}  d5 {[%clk 0:02:57]} 3. e5 {[%clk 0:03:00]}  Bf5 {[%clk 0:02:56]} 4. h4 {[%clk 0:03:00]}  h6 {[%clk 0:02:56]} 5. g4 {[%clk 0:03:00]}  Bd7 {[%clk 0:02:56]} 6. Nc3 {[%clk 0:02:59]}  e6 {[%clk 0:02:56]} 7. Be3 {[%clk 0:02:56]}  a6 {[%clk 0:02:51]} 8. h5 {[%clk 0:02:48]}  c5 {[%clk 0:02:50]} 9. dxc5 {[%clk 0:02:47]}  Qc7 {[%clk 0:02:46]} 10. Nf3 {[%clk 0:02:45]}  Bxc5 {[%clk 0:02:45]} 11. Bxc5 {[%clk 0:02:45]}  Qxc5 {[%clk 0:02:45]} 12. Qd2 {[%clk 0:02:43]}  Ne7 {[%clk 0:02:43]} 13. O-O-O {[%clk 0:02:37]}  Nbc6 {[%clk 0:02:43]} 14. Bd3 {[%clk 0:02:17]}  b5 {[%clk 0:02:39]} 15. Qf4 {[%clk 0:02:15]}  b4 {[%clk 0:02:38]} 16. Ne2 {[%clk 0:02:15]}  a5 {[%clk 0:02:37]} 17. Kb1 {[%clk 0:02:11]}  a4 {[%clk 0:02:37]} 18. Ned4 {[%clk 0:02:10]}  a3 {[%clk 0:02:28]} 19. Nb3 {[%clk 0:01:32]}  Qa7 {[%clk 0:02:24]} 20. Qe3 {[%clk 0:01:09]}  axb2 {[%clk 0:02:22]} 21. Qxa7 {[%clk 0:01:07]}  Rxa7 {[%clk 0:02:23]} 22. Kxb2 {[%clk 0:01:06]}  O-O {[%clk 0:02:15]} 23. g5 {[%clk 0:01:05]}  Rfa8 {[%clk 0:02:15]} 24. Nc1 {[%clk 0:01:04]}  hxg5 {[%clk 0:02:13]} 25. Rdg1 {[%clk 0:00:59]}  f6 {[%clk 0:02:03]} 26. h6 {[%clk 0:00:59]}  Nf5 {[%clk 0:01:58]} 27. hxg7 {[%clk 0:00:58]}  Kxg7 {[%clk 0:01:58]} 28. Bxf5 {[%clk 0:00:53]}  exf5 {[%clk 0:01:56]} 29. exf6+ {[%clk 0:00:53]}  Kxf6 {[%clk 0:01:56]} 30. Rxg5 {[%clk 0:00:51]}  Ra3 {[%clk 0:01:47]} 31. Rh6+ {[%clk 0:00:50]}  Ke7 {[%clk 0:01:48]} 32. Rg7+ {[%clk 0:00:44]}  Kd8 {[%clk 0:01:48]} 33. Nb3 {[%clk 0:00:37]}  Rxa2+ {[%clk 0:01:41]} 34. Kc1 {[%clk 0:00:37]}  Be8 {[%clk 0:01:26]} 35. Rd6+ {[%clk 0:00:26]}  Kc8 {[%clk 0:01:25]} 36. Nfd4 {[%clk 0:00:17]}  R8a7 {[%clk 0:01:11]} 37. Rg8 {[%clk 0:00:16]}  Kc7 {[%clk 0:01:08]} 38. Nb5+ {[%clk 0:00:15]}  Kb6 {[%clk 0:01:05]} 39. Nxa7 {[%clk 0:00:15]}  Bf7 {[%clk 0:00:59]} 40. Rc8 {[%clk 0:00:12]}  Rxa7 {[%clk 0:00:55]} 41. Rdxc6+ {[%clk 0:00:10]}  Kb5 {[%clk 0:00:55]} 42. Rc5+ {[%clk 0:00:10]}  Ka4 {[%clk 0:00:54]} 43. R8c7 {[%clk 0:00:10]}  Ra8 {[%clk 0:00:52]} 44. Rxf7 {[%clk 0:00:08]}  d4 {[%clk 0:00:52]} 45. Rfxf5 {[%clk 0:00:08]}  d3 {[%clk 0:00:52]} 46. Ra5+ {[%clk 0:00:08]}  Rxa5 {[%clk 0:00:52]} 47. Rxa5# {[%clk 0:00:08]} 1-0


[Site "https://www.chess.com"]

[Event "Titled Tuesday Blitz December 06 Late 2022"]
[White "Rama, Tejas"]
[Black "Moksh Amit Doshi"]
[WhiteFideId "30907381"]
[BlackFideId "25064967"]
[WhiteElo "2089"]
[BlackElo "2297"]
[Result "0-1"]
[Round "04"]
[TimeControl "180+1"]
[Date "2022.12.07"]
[WhiteClock "0:00:05"]
[BlackClock "0:01:40"]

1. d4 {[%clk 0:03:00]}  Nf6 {[%clk 0:02:48]} 2. c4 {[%clk 0:03:00]}  g6 {[%clk 0:02:47]} 3. Nf3 {[%clk 0:03:00]}  Bg7 {[%clk 0:02:46]} 4. Nc3 {[%clk 0:03:00]}  d5 {[%clk 0:02:46]} 5. Qb3 {[%clk 0:03:00]}  dxc4 {[%clk 0:02:45]} 6. Qxc4 {[%clk 0:03:01]}  O-O {[%clk 0:02:46]} 7. e4 {[%clk 0:03:01]}  Nc6 {[%clk 0:02:46]} 8. Be2 {[%clk 0:03:01]}  e5 {[%clk 0:02:46]} 9. d5 {[%clk 0:03:02]}  Nd4 {[%clk 0:02:46]} 10. Nxd4 {[%clk 0:03:02]}  exd4 {[%clk 0:02:46]} 11. Qxd4 {[%clk 0:03:03]}  c6 {[%clk 0:02:46]} 12. Qc4 {[%clk 0:03:03]}  b5 {[%clk 0:02:42]} 13. Qxc6 {[%clk 0:03:03]}  Bd7 {[%clk 0:02:42]} 14. Qd6 {[%clk 0:03:03]}  Re8 {[%clk 0:02:43]} 15. e5 {[%clk 0:03:03]}  b4 {[%clk 0:02:17]} 16. Qxb4 {[%clk 0:02:35]}  Rxe5 {[%clk 0:02:16]} 17. O-O {[%clk 0:02:35]}  a5 {[%clk 0:02:15]} 18. Qb3 {[%clk 0:01:45]}  Nxd5 {[%clk 0:02:13]} 19. Bf3 {[%clk 0:01:36]}  Nxc3 {[%clk 0:02:10]} 20. Qxc3 {[%clk 0:01:24]}  Rc8 {[%clk 0:02:06]} 21. Qd3 {[%clk 0:01:15]}  Bb5 {[%clk 0:01:58]} 22. Qxd8+ {[%clk 0:01:01]}  Rxd8 {[%clk 0:01:59]} 23. Be3 {[%clk 0:00:29]}  Bxf1 {[%clk 0:01:57]} 24. Kxf1 {[%clk 0:00:30]}  Rb5 {[%clk 0:01:54]} 25. a4 {[%clk 0:00:21]}  Rxb2 {[%clk 0:01:52]} 26. Rc1 {[%clk 0:00:18]}  Bd4 {[%clk 0:01:47]} 27. Rd1 {[%clk 0:00:15]}  Bb6 {[%clk 0:01:45]} 28. Rxd8+ {[%clk 0:00:10]}  Bxd8 {[%clk 0:01:46]} 29. Bc6 {[%clk 0:00:11]}  Bb6 {[%clk 0:01:45]} 30. Bxb6 {[%clk 0:00:09]}  Rxb6 {[%clk 0:01:46]} 31. Bb5 {[%clk 0:00:10]}  Re6 {[%clk 0:01:45]} 32. g3 {[%clk 0:00:09]}  Kf8 {[%clk 0:01:45]} 33. Kg2 {[%clk 0:00:10]}  Ke7 {[%clk 0:01:45]} 34. Kf3 {[%clk 0:00:10]}  Kd6 {[%clk 0:01:45]} 35. Kf4 {[%clk 0:00:10]}  Kc5 {[%clk 0:01:45]} 36. h4 {[%clk 0:00:09]}  f6 {[%clk 0:01:44]} 37. Kf3 {[%clk 0:00:07]}  Re5 {[%clk 0:01:43]} 38. Kf4 {[%clk 0:00:07]}  Kb4 {[%clk 0:01:43]} 39. Bd7 {[%clk 0:00:07]}  Re7 {[%clk 0:01:42]} 40. Bb5 {[%clk 0:00:07]}  Rb7 {[%clk 0:01:40]} 41. Bc6 {[%clk 0:00:07]}  Rc7 {[%clk 0:01:40]} 42. Bb5 {[%clk 0:00:07]}  Rc2 {[%clk 0:01:40]} 43. h5 {[%clk 0:00:07]}  Rxf2+ {[%clk 0:01:40]} 44. Kg4 {[%clk 0:00:06]}  Rf5 {[%clk 0:01:38]} 45. hxg6 {[%clk 0:00:04]}  hxg6 {[%clk 0:01:39]} 46. Bd3 {[%clk 0:00:04]}  Rg5+ {[%clk 0:01:39]} 47. Kf4 {[%clk 0:00:05]}  Kxa4 {[%clk 0:01:40]} 0-1


[Site "https://www.chess.com"]

[Event "Titled Tuesday Blitz December 06 Late 2022"]
[White "Riff, Vincent"]
[Black "Corrales Jimenez, Fidel"]
[WhiteFideId "617776"]
[BlackFideId "3506690"]
[WhiteElo "2369"]
[BlackElo "2541"]
[Result "0-1"]
[Round "04"]
[TimeControl "180+1"]
[Date "2022.12.06"]
[WhiteClock "0:00:23"]
[BlackClock "0:00:48"]

1. e4 {[%clk 0:02:36]}  c5 {[%clk 0:02:59]} 2. Nc3 {[%clk 0:02:36]}  Nc6 {[%clk 0:02:59]} 3. Bb5 {[%clk 0:02:36]}  Nd4 {[%clk 0:02:59]} 4. Nf3 {[%clk 0:02:36]}  e6 {[%clk 0:03:00]} 5. Bc4 {[%clk 0:02:36]}  Ne7 {[%clk 0:03:00]} 6. O-O {[%clk 0:02:36]}  Nec6 {[%clk 0:03:00]} 7. Nxd4 {[%clk 0:02:36]}  cxd4 {[%clk 0:02:58]} 8. Ne2 {[%clk 0:02:35]}  Be7 {[%clk 0:02:58]} 9. d3 {[%clk 0:02:34]}  d5 {[%clk 0:02:58]} 10. exd5 {[%clk 0:02:34]}  exd5 {[%clk 0:02:59]} 11. Bb3 {[%clk 0:02:34]}  g5 {[%clk 0:02:56]} 12. c3 {[%clk 0:02:33]}  Be6 {[%clk 0:02:53]} 13. Nxd4 {[%clk 0:02:32]}  Nxd4 {[%clk 0:02:53]} 14. cxd4 {[%clk 0:02:33]}  h5 {[%clk 0:02:53]} 15. Ba4+ {[%clk 0:02:31]}  Kf8 {[%clk 0:02:53]} 16. Re1 {[%clk 0:02:31]}  h4 {[%clk 0:02:51]} 17. Qf3 {[%clk 0:02:30]}  g4 {[%clk 0:02:51]} 18. Qf4 {[%clk 0:02:28]}  Bd6 {[%clk 0:02:51]} 19. Re5 {[%clk 0:02:11]}  g3 {[%clk 0:02:45]} 20. fxg3 {[%clk 0:02:07]}  hxg3 {[%clk 0:02:45]} 21. Qxg3 {[%clk 0:02:08]}  Qa5 {[%clk 0:02:42]} 22. Bf4 {[%clk 0:01:49]}  Qxa4 {[%clk 0:02:35]} 23. Rxe6 {[%clk 0:01:34]}  Qxd4+ {[%clk 0:02:33]} 24. Be3 {[%clk 0:01:35]}  Bxg3 {[%clk 0:02:30]} 25. Bxd4 {[%clk 0:01:34]}  Bxh2+ {[%clk 0:02:29]} 26. Kf2 {[%clk 0:01:30]}  Rh4 {[%clk 0:02:28]} 27. Bc5+ {[%clk 0:01:29]}  Kg8 {[%clk 0:02:22]} 28. Re3 {[%clk 0:01:27]}  Bf4 {[%clk 0:02:17]} 29. Rf3 {[%clk 0:01:26]}  Rc8 {[%clk 0:02:14]} 30. Bxa7 {[%clk 0:01:20]}  Rc2+ {[%clk 0:02:14]} 31. Kg1 {[%clk 0:01:21]}  Bh2+ {[%clk 0:02:13]} 32. Kf1 {[%clk 0:01:20]}  Bb8 {[%clk 0:02:11]} 33. Bg1 {[%clk 0:01:04]}  Rh1 {[%clk 0:02:10]} 34. Rh3 {[%clk 0:00:54]}  Rxh3 {[%clk 0:02:05]} 35. gxh3 {[%clk 0:00:55]}  Rxb2 {[%clk 0:02:05]} 36. Bd4 {[%clk 0:00:48]}  Rh2 {[%clk 0:02:03]} 37. a4 {[%clk 0:00:43]}  Rxh3 {[%clk 0:02:00]} 38. Ke2 {[%clk 0:00:42]}  Rh4 {[%clk 0:01:48]} 39. Bf2 {[%clk 0:00:42]}  Rh2 {[%clk 0:01:46]} 40. Kf3 {[%clk 0:00:42]}  Be5 {[%clk 0:01:41]} 41. Rb1 {[%clk 0:00:42]}  Rh3+ {[%clk 0:01:36]} 42. Ke2 {[%clk 0:00:42]}  Rh2 {[%clk 0:00:58]} 43. Kf3 {[%clk 0:00:42]}  Rh6 {[%clk 0:00:55]} 44. Rxb7 {[%clk 0:00:41]}  Ra6 {[%clk 0:00:56]} 45. Rb5 {[%clk 0:00:40]}  Rxa4 {[%clk 0:00:52]} 46. Rxd5 {[%clk 0:00:41]}  Bf6 {[%clk 0:00:52]} 47. Rb5 {[%clk 0:00:38]}  Kg7 {[%clk 0:00:52]} 48. Rb6 {[%clk 0:00:37]}  Be5 {[%clk 0:00:51]} 49. Rb5 {[%clk 0:00:37]}  f6 {[%clk 0:00:50]} 50. Rd5 {[%clk 0:00:36]}  Kg6 {[%clk 0:00:50]} 51. d4 {[%clk 0:00:36]}  Bc7 {[%clk 0:00:50]} 52. Rd7 {[%clk 0:00:36]}  Bb6 {[%clk 0:00:49]} 53. d5 {[%clk 0:00:37]}  Ra3+ {[%clk 0:00:49]} 54. Ke4 {[%clk 0:00:23]}  Bxf2 {[%clk 0:00:48]} 0-1


[Site "https://www.chess.com"]

[Event "Titled Tuesday Blitz December 06 Late 2022"]
[White "Rosen, Eric"]
[Black "Goncalves, Davi Sulzbacher"]
[WhiteFideId "2032562"]
[BlackFideId "2154510"]
[WhiteElo "2678"]
[BlackElo "2497"]
[Result "0-1"]
[Round "04"]
[TimeControl "180+1"]
[Date "2022.12.07"]
[WhiteClock "0:00:01"]
[BlackClock "0:00:14"]

1. d4 {[%clk 0:02:56]}  Nf6 {[%clk 0:02:59]} 2. Bf4 {[%clk 0:02:56]}  e6 {[%clk 0:02:58]} 3. e3 {[%clk 0:02:56]}  Bd6 {[%clk 0:02:58]} 4. Bg3 {[%clk 0:02:56]}  b6 {[%clk 0:02:54]} 5. Qf3 {[%clk 0:02:51]}  Nc6 {[%clk 0:02:54]} 6. Bxd6 {[%clk 0:02:51]}  cxd6 {[%clk 0:02:53]} 7. Qg3 {[%clk 0:02:51]}  O-O {[%clk 0:02:51]} 8. Qxd6 {[%clk 0:02:47]}  Bb7 {[%clk 0:02:41]} 9. Nd2 {[%clk 0:02:36]}  Rc8 {[%clk 0:02:38]} 10. c3 {[%clk 0:02:36]}  e5 {[%clk 0:02:27]} 11. dxe5 {[%clk 0:02:05]}  Ng4 {[%clk 0:02:27]} 12. Ngf3 {[%clk 0:02:05]}  Re8 {[%clk 0:02:27]} 13. Bc4 {[%clk 0:01:44]}  Ncxe5 {[%clk 0:02:23]} 14. Bb3 {[%clk 0:01:31]}  Rc6 {[%clk 0:01:49]} 15. Qd4 {[%clk 0:01:31]}  Rf6 {[%clk 0:01:31]} 16. Bd5 {[%clk 0:00:52]}  Ba6 {[%clk 0:01:12]} 17. h3 {[%clk 0:00:50]}  Nd3+ {[%clk 0:01:08]} 18. Qxd3 {[%clk 0:00:41]}  Bxd3 {[%clk 0:01:07]} 19. hxg4 {[%clk 0:00:42]}  Rd6 {[%clk 0:00:58]} 20. Bb3 {[%clk 0:00:39]}  b5 {[%clk 0:00:52]} 21. g5 {[%clk 0:00:34]}  a5 {[%clk 0:00:50]} 22. a4 {[%clk 0:00:33]}  Qb6 {[%clk 0:00:47]} 23. Rh4 {[%clk 0:00:13]}  Rxe3+ {[%clk 0:00:37]} 24. fxe3 {[%clk 0:00:13]}  Qxe3+ {[%clk 0:00:38]} 25. Kd1 {[%clk 0:00:14]}  Be2+ {[%clk 0:00:30]} 26. Kc1 {[%clk 0:00:12]}  Bxf3 {[%clk 0:00:24]} 27. gxf3 {[%clk 0:00:03]}  Qxd2+ {[%clk 0:00:25]} 28. Kb1 {[%clk 0:00:04]}  Qe1+ {[%clk 0:00:25]} 29. Ka2 {[%clk 0:00:04]}  Qxh4 {[%clk 0:00:26]} 30. axb5 {[%clk 0:00:04]}  a4 {[%clk 0:00:25]} 31. Bc2 {[%clk 0:00:02]}  Qc4+ {[%clk 0:00:24]} 32. Ka3 {[%clk 0:00:02]}  Qxb5 {[%clk 0:00:18]} 33. Bxa4 {[%clk 0:00:02]}  Qc5+ {[%clk 0:00:18]} 34. Kb3 {[%clk 0:00:01]}  Rb6+ {[%clk 0:00:18]} 35. Ka2 {[%clk 0:00:02]}  Ra6 {[%clk 0:00:14]} 36. b3 {[%clk 0:00:01]}  g6 {[%clk 0:00:14]} 37. c4 {[%clk 0:00:01]}  Qd4 {[%clk 0:00:14]} 38. Rb1 {[%clk 0:00:01]}  Re6 {[%clk 0:00:14]} 39. Rb2 {[%clk 0:00:01]}  Re1 {[%clk 0:00:14]} 40. Bxd7 {[%clk 0:00:01]}  Qa7+ {[%clk 0:00:14]} 41. Ba4 {[%clk 0:00:01]}  Qc5 {[%clk 0:00:14]} 0-1


[Site "https://www.chess.com"]